bitfinex-derivatives/quotes_ETHF0:USTF0_20250320
["timestamp","ask_amount","ask_price","bid_price","bid_amount"]
[1742483439966,3.2078,1992.4,1992.3,1.00424]
[1742483440167,4.21203,1992.4,1992.2,1.00425]
[1742483440369,1.00426,1992.3,1992.1,1.00431]
[1742483440569,3.2078,1992.2,1992.1,1.00429]
[1742483440774,1.00424,1992.3,1992.2,1.00427]
[1742483440973,0.00752483,1992.3,1992.2,1.00427]
[1742483441173,1.43612483,1992.3,1992.2,1.00427]
[1742483441776,2.44036483,1992.3,1992.2,1.00427]
[1742483442282,1.00429,1992.2,1992.1,1.0043]
[1742483442480,1.00434,1992.1,1991.9,4.80843]
[1742483442775,1.4286,1992.0,1991.9,4.80843]
[1742483443367,0.00752483,1992.3,1992.2,1.00429]
[1742483443572,1.43612483,1992.3,1992.2,1.00429]
[1742483444772,1.43612483,1992.3,1992.1,1.00431]
[1742483444967,3.2078,1992.2,1992.0,2.35966]
[1742483445167,1.3485,1992.1,1992.0,4.79836]
[1742483446078,1.3485,1992.1,1991.9,2.36511]
[1742483446383,1.3485,1992.1,1991.7,0.00752483]
[1742483446384,1.00449,1991.8,1991.7,0.00752483]
[1742483446578,1.00467,1991.5,1991.2,6.16148]
[1742483446877,4.21248,1991.5,1991.2,2.36548]
[1742483447072,1.3754,1991.4,1991.2,2.36548]
[1742483447273,1.00483,1991.2,1991.0,50.6038]
[1742483447474,1.00478,1991.3,1991.1,3.795]
[1742483447675,2.3802,1991.2,1991.1,3.795]
[1742483447875,1.3754,1991.2,1991.0,47.396]
[1742483448171,1.3754,1991.2,1991.0,48.40086]
[1742483448375,4.21265,1991.1,1991.0,1.0]
[1742483448683,3.2078,1991.1,1991.0,1.0]
[1742483449084,4.5832,1991.1,1991.0,2.0049]
[1742483449383,4.5832,1991.1,1991.0,1.0]
[1742483449581,4.5832,1991.1,1991.0,2.0049]
[1742483450379,5.58805,1991.1,1991.0,1.0]
[1742483451279,4.5832,1991.1,1991.0,1.0]
[1742483451481,1.3754,1991.1,1991.0,2.0049]
[1742483451680,0.00752483,1991.3,1991.0,1.0]
[1742483451898,0.00752483,1991.3,1991.2,1.0048]
[1742483452196,0.00752483,1991.3,1991.2,40.8]
[1742483452488,3.21532483,1991.3,1991.2,40.8]
[1742483452694,3.21532483,1991.3,1991.2,1.0048]
[1742483452894,5.58868483,1991.3,1991.1,47.40882]
[1742483453095,5.58868483,1991.3,1991.2,40.8]
[1742483453394,4.58392483,1991.3,1991.2,40.8]
[1742483453592,5.58867483,1991.3,1991.2,40.8]
[1742483453792,1.0048,1991.2,1991.1,46.404]
[1742483453991,2.3734,1991.2,1991.1,46.404]
[1742483454392,1.3686,1991.2,1991.1,47.40885]
[1742483454794,1.3686,1991.2,1991.1,1.00485]
[1742483455093,2.3734,1991.2,1991.1,1.00485]
[1742483455296,1.3686,1991.2,1991.1,1.00485]
[1742483456391,1.3686,1991.2,1991.0,2.00486]
[1742483456795,1.3686,1991.2,1991.1,1.00485]
[1742483457492,1.3686,1991.2,1991.0,1.0]
[1742483457699,1.3686,1991.2,1991.1,1.00485]
[1742483457897,1.3686,1991.2,1991.1,2.37275]
[1742483458497,1.3686,1991.2,1991.0,5.79287]
[1742483458701,2.37341,1991.2,1991.0,4.788]
[1742483458890,1.00485,1991.1,1991.0,1.0]
[1742483459090,1.4026,1991.1,1991.0,1.0]
[1742483459295,1.4026,1991.1,1991.0,2.0049]
[1742483459494,1.4026,1991.1,1991.0,1.0]
[1742483459695,1.4026,1991.1,1991.0,2.0049]
[1742483459998,1.4026,1991.1,1991.0,3.3562]
[1742483460501,1.4026,1991.1,1991.0,1.0]
[1742483460502,5.61525,1991.1,1991.0,1.0]
[1742483460893,1.4026,1991.1,1991.0,2.0049]
[1742483461086,1.4026,1991.1,1991.0,1.0]
[1742483461601,5.61525,1991.1,1991.0,1.0]
[1742483461793,4.6104,1991.1,1991.0,2.0049]
[1742483462102,2.40745,1991.1,1991.0,1.0]
[1742483462394,14.07525,1991.1,1991.0,1.0]
[1742483462696,14.07525,1991.1,1990.6,50.62286]
[1742483462697,2.51225,1991.0,1990.6,50.62286]
[1742483462889,1.00505,1990.7,1990.6,46.41]
[1742483463397,1.00511,1990.6,1990.5,1.00512]
[1742483463597,1.0052,1990.4,1990.3,3.2078]
[1742483463902,1.00516,1990.5,1990.4,0.00501655]
[1742483464591,1.00516,1990.5,1989.8,2.51377]
[1742483464592,2.51302,1990.4,1989.8,2.51377]
[1742483464787,4.21309,1990.3,1989.9,2.51364]
[1742483464994,3.2078,1990.1,1989.9,42.107]
[1742483465195,2.4202,1990.0,1989.9,40.8]
[1742483466100,2.4202,1990.0,1989.9,41.80545]
[1742483466401,1.4148,1990.0,1989.9,1.00545]
[1742483466697,3.21532483,1990.1,1990.0,1.0054]
[1742483466893,3.21532483,1990.1,1990.0,41.8054]
[1742483467101,1.42232483,1990.1,1990.0,41.8054]
[1742483467293,0.00752483,1990.1,1990.0,41.8054]
[1742483467688,0.00752483,1990.1,1990.0,1.0054]
[1742483468095,0.00752483,1990.1,1990.0,41.8054]
[1742483468391,0.00752483,1990.1,1990.0,45.0132]
[1742483468788,4.566,1990.8,1990.0,52.46181785]
[1742483468991,2.39043,1991.0,1990.9,1.00495]
[1742483468992,1.3855,1991.0,1990.9,1.00495]
[1742483469296,4.2126,1991.2,1991.0,1.00486]
[1742483469601,3.2078,1991.2,1990.7,7.66151]
[1742483469796,3.2078,1991.2,1991.1,1.00485]
[1742483470699,0.00752483,1991.3,1991.2,1.0048]
[1742483471800,3.2078,1991.8,1991.4,1.00468]
[1742483472001,3.2078,1991.8,1991.4,4.79369]
[1742483472002,1.00463,1991.6,1991.4,4.79369]
[1742483472297,1.3826,1991.7,1991.6,1.00459]
[1742483473305,1.3826,1991.7,1991.5,2.41433]
[1742483473898,1.3826,1991.7,1991.5,2.41432]
[1742483474099,1.3826,1991.7,1990.9,3.788]
[1742483474100,5.71932,1991.6,1990.9,3.788]
[1742483474305,3.2078,1991.2,1990.8,0.00752483]
[1742483474605,1.3432,1991.1,1990.8,1.43172483]
[1742483474801,1.3432,1991.1,1991.0,1.0049]
[1742483474994,3.2078,1991.2,1991.1,1.00485]
[1742483475201,3.2078,1991.2,1990.9,1.4242]
[1742483475495,4.21263,1991.2,1990.9,1.4242]
[1742483475700,3.2078,1991.2,1991.0,1.00486]
[1742483475899,4.2126,1991.2,1990.9,2.42912]
[1742483476096,1.00487,1991.1,1990.8,4.80049483]
[1742483476297,1.00485,1991.1,1990.9,1.00492]
[1742483476697,3.2078,1991.2,1990.8,1.43172483]
[1742483476899,1.00487,1991.1,1990.9,1.00493]
[1742483477096,4.21272,1991.0,1990.8,2.43670483]
[1742483477397,3.2078,1991.0,1990.9,1.00495]
[1742483477701,3.2078,1991.0,1990.9,2.31655]
[1742483477899,3.2078,1991.2,1991.1,1.00485]
[1742483478297,3.2078,1991.2,1990.9,1.3116]
[1742483478601,1.00487,1991.1,1990.9,2.31653]
[1742483478800,3.2078,1991.2,1990.8,1.01248483]
[1742483479098,1.00506,1990.7,1990.5,1.00513]
[1742483479305,1.00502,1990.8,1990.3,8.3074]
[1742483479507,1.00502,1990.8,1990.5,1.0051]
[1742483479801,1.00506,1990.7,1990.5,1.0051]
[1742483479991,1.00506,1990.7,1990.6,1.0051]
[1742483480194,1.00504,1990.8,1990.7,1.00505]
[1742483480394,0.00752483,1990.8,1990.7,1.00505]
[1742483480591,0.00752483,1990.8,1990.5,0.00752483]
[1742483480800,1.0051,1990.6,1990.5,0.00752483]
[1742483481002,2.51278,1990.6,1990.1,1.00535]
[1742483481191,9.1678,1990.5,1990.0,1.4303]
[1742483481398,1.0052,1990.4,1990.3,1.00521]
[1742483481599,10.17298,1990.5,1990.3,1.00521]
[1742483481797,1.00521,1990.4,1990.0,1.4303]
[1742483482104,1.00523,1990.4,1990.0,1.4303]
[1742483482306,9.1678,1990.5,1990.4,1.0052]
[1742483482503,5.96,1990.5,1990.4,1.0052]
[1742483482706,3.2078,1990.7,1990.6,1.0051]
[1742483483301,0.00752483,1990.8,1990.6,1.0051]
[1742483483503,0.00752483,1990.8,1990.7,1.00505]
[1742483483804,3.2078,1991.1,1991.0,1.0049]
[1742483484006,4.21266,1991.1,1990.9,1.00492]
[1742483484212,1.0049,1991.0,1990.9,1.3843]
[1742483484401,4.21269,1991.1,1990.9,2.38925]
[1742483484795,3.2078,1991.1,1990.9,1.3843]
[1742483485002,3.2078,1991.1,1991.0,1.0049]
[1742483485307,0.00752483,1991.2,1991.1,1.00485]
[1742483485504,0.00752483,1991.2,1991.1,2.38915]
[1742483487008,10.17238,1991.7,1991.5,1.00462]
[1742483487205,4.21238,1991.7,1991.6,1.4421]
[1742483487601,2.7102,1991.8,1991.6,1.4421]
[1742483487802,1.00454,1991.7,1991.6,1.4421]
[1742483488511,3.72225483,1991.8,1991.6,1.4421]
[1742483488904,3.72223483,1991.8,1991.6,2.44667]
[1742483489111,3.72223483,1991.8,1991.6,1.4421]
[1742483489310,4.21235,1991.7,1991.5,1.00463]
[1742483489510,3.2078,1991.7,1991.5,1.00463]
[1742483489907,3.2078,1991.7,1991.6,2.45559]
[1742483490299,0.00752483,1991.8,1991.7,1.00454]
[1742483492309,0.00752483,1991.8,1991.7,4.79154]
[1742483492609,5.96,1992.2,1992.1,1.00434]
[1742483492908,4.6147,1992.4,1992.3,1.00424]
[1742483493108,3.2078,1992.4,1992.3,1.00424]
[1742483493309,7.381,1992.7,1992.6,1.00409]
[1742483493505,5.96,1992.7,1992.4,1.3874]
[1742483493713,6.96408,1992.7,1992.5,0.00752483]
[1742483494212,4.21189,1992.6,1992.5,0.00752483]
[1742483494414,5.96,1992.7,1992.5,0.00752483]
[1742483494610,5.96,1992.7,1992.5,1.01164483]
[1742483494913,1.3386,1992.6,1992.5,1.01164483]
[1742483495706,0.00752483,1992.8,1992.7,1.00404]
[1742483496212,0.00752483,1992.8,1992.7,2.33874]
[1742483496804,3.2078,1993.1,1993.0,1.00389]
[1742483497007,10.5284,1993.4,1993.2,1.00374]
[1742483497305,3.2078,1993.6,1993.0,2.50973]
[1742483497511,1.3778,1993.5,1993.0,1.3347]
[1742483497708,2.38145,1993.5,1993.2,1.00376]
[1742483497913,1.3778,1993.5,1993.2,1.00379]
[1742483498115,1.38532483,1993.5,1993.2,1.00379]
[1742483498315,2.38898483,1993.5,1993.3,1.00373]
[1742483498511,1.38532483,1993.5,1993.4,1.00369]
[1742483498918,0.00752483,1993.5,1993.4,1.00369]
[1742483499312,1.33362483,1993.5,1993.4,4.78969]
[1742483499518,0.00752483,1993.5,1993.4,4.78969]
[1742483500016,7.2861,1993.9,1993.4,7.99749]
[1742483500213,4.5339,1993.9,1993.7,1.00352]
[1742483500418,4.5339,1993.9,1993.5,1.4183]
[1742483500419,1.0035,1993.8,1993.5,1.4183]
[1742483500612,4.5339,1993.7,1993.6,1.00359]
[1742483501109,4.5339,1993.7,1993.5,1.4183]
[1742483501315,1.00359,1993.6,1993.5,0.00752483]
[1742483501617,1.4416,1993.6,1993.5,0.00752483]
[1742483502013,1.4416,1993.6,1993.5,1.48662483]
[1742483502014,2.44519,1993.6,1993.5,1.48662483]
[1742483502209,2.44519,1993.6,1993.5,0.00752483]
[1742483502414,1.4416,1993.6,1993.5,1.01116483]
[1742483502617,1.4416,1993.6,1993.5,0.00752483]
[1742483502817,1.4416,1993.6,1993.5,1.48662483]
[1742483503014,1.4416,1993.6,1993.5,2.49026483]
[1742483503418,0.00752483,1993.8,1993.5,1.48662483]
[1742483503724,0.00752483,1993.8,1993.6,4.78757]
[1742483504022,1.44912483,1993.8,1993.7,1.4791]
[1742483504620,1.00356,1993.7,1993.5,0.00752483]
[1742483504817,1.5194,1993.6,1993.5,1.01116483]
[1742483505017,1.5194,1993.6,1993.5,2.52666483]
[1742483505924,1.5194,1993.6,1993.5,1.52302483]
[1742483506223,1.5194,1993.6,1993.5,2.52666483]
[1742483507018,1.5194,1993.6,1993.5,0.00752483]
[1742483507217,2.52299,1993.6,1993.5,0.00752483]
[1742483507519,8.48299,1993.6,1993.5,0.00752483]
[1742483507736,1.00374,1993.3,1993.2,46.403]
[1742483508024,4.21154,1993.3,1993.1,1.00382]
[1742483508219,4.21154,1993.3,1992.9,4.78792]
[1742483508220,1.00384,1993.1,1992.9,4.78792]
[1742483508413,1.00384,1993.1,1992.8,1.4649]
[1742483508414,1.00394,1992.9,1992.8,1.4649]
[1742483508617,1.00399,1992.8,1992.7,46.378]
[1742483508815,2.42699,1992.8,1992.7,46.38552483]
[1742483509924,1.00409,1992.7,1992.4,42.2649]
[1742483510118,2.42709,1992.6,1992.5,1.00414]
[1742483510316,2.42709,1992.6,1992.2,48.89071]
[1742483510317,3.93325,1992.6,1992.2,46.38]
[1742483510513,3.2078,1992.4,1992.2,47.38428]
[1742483510722,1.4759,1992.3,1992.2,47.38428]
[1742483510912,2.48014,1992.3,1992.2,46.38]
[1742483511117,1.4759,1992.3,1992.1,0.00752483]
[1742483511313,4.21209,1992.2,1992.1,0.00752483]
[1742483512026,1.00449,1991.8,1991.7,46.38]
[1742483512619,2.48039,1991.8,1991.7,46.38]
[1742483512821,1.00454,1991.7,1991.6,40.8]
[1742483513015,5.68824,1991.7,1991.6,1.00459]
[1742483513220,1.00461,1991.6,1991.5,1.01214483]
[1742483513422,2.48051,1991.6,1991.5,0.00752483]
[1742483514322,3.2078,1991.7,1991.6,1.00459]
[1742483514522,3.2078,1992.0,1991.8,1.00446]
[1742483514722,4.21223,1992.0,1991.9,1.5698]
[1742483514928,4.21223,1992.0,1991.9,2.57424]
[1742483514929,4.7492,1992.0,1991.9,2.57424]
[1742483515123,4.7492,1992.0,1991.9,43.37424]
[1742483515330,4.7492,1992.0,1991.9,40.8]
[1742483515520,5.75359,1992.0,1991.9,40.8]
[1742483516526,1.00446,1991.9,1991.7,1.5698]
[1742483516718,2.54589,1991.8,1991.7,2.57431]
[1742483516921,1.5414,1991.8,1991.7,42.3698]
[1742483517226,2.54589,1991.8,1991.7,1.5698]
[1742483517427,1.5414,1991.8,1991.7,2.57434]
[1742483517630,1.00449,1991.8,1991.7,2.57433]
[1742483517822,1.00449,1991.8,1991.7,1.5698]
[1742483518227,1.00454,1991.7,1991.6,3.784]
[1742483518427,1.00459,1991.6,1991.5,0.00752483]
[1742483518923,2.54029,1991.6,1991.5,0.00752483]
[1742483519133,2.54029,1991.6,1991.5,1.54852483]
[1742483519328,2.54029,1991.6,1991.5,0.00752483]
[1742483520423,1.5357,1991.6,1991.5,0.00752483]
[1742483520620,2.54029,1991.6,1991.5,0.00752483]
[1742483521326,1.5357,1991.6,1991.5,1.01216483]
[1742483521532,5.96,1991.7,1991.6,1.00459]
[1742483521829,1.544,1992.0,1991.9,1.00444]
[1742483522026,2.51809483,1992.4,1991.8,6.29622]
[1742483522027,2.46847,1992.3,1991.8,6.29622]
[1742483522224,3.21532483,1992.4,1992.3,1.00424]
[1742483522634,1.00427,1992.3,1992.1,5.2338]
[1742483522931,5.76355483,1992.4,1992.3,1.00424]
[1742483523133,5.76355483,1992.4,1992.2,2.45306]
[1742483523332,1.00429,1992.2,1992.1,3.785]
[1742483523527,1.00439,1992.0,1991.8,1.00447]
[1742483523731,5.71855,1992.2,1991.8,1.4453]
[1742483523732,1.00444,1991.9,1991.8,1.4453]
[1742483523933,2.56574,1991.9,1991.8,1.4453]
[1742483524324,2.56579,1991.9,1991.8,1.00449]
[1742483524524,3.2078,1992.0,1991.9,1.00442]
[1742483525032,1.5613,1992.1,1992.0,1.00439]
[1742483525632,1.5613,1992.1,1992.0,1.00437]
[1742483525633,1.00434,1992.1,1992.0,1.00437]
[1742483525934,2.56563,1992.2,1992.0,1.00438]
[1742483526225,3.2078,1992.1,1991.7,50.186]
[1742483526429,1.00448,1991.9,1991.8,1.4762]
[1742483526825,1.00449,1991.8,1991.7,46.401]
[1742483527029,1.00449,1991.8,1991.7,47.40554]
[1742483527225,1.00447,1991.9,1991.7,46.401]
[1742483527428,1.00447,1991.9,1991.8,2.48067]
[1742483527736,1.00448,1991.9,1991.7,46.401]
[1742483527926,2.46693,1992.0,1991.7,46.401]
[1742483528127,1.00449,1991.8,1991.7,47.40551]
[1742483528326,1.00449,1991.8,1991.7,46.401]
[1742483528532,1.00459,1991.6,1991.5,0.00752483]
[1742483528727,4.21239,1991.6,1991.5,0.00752483]
[1742483530022,3.2078,1991.6,1991.5,1.01216483]
[1742483530326,3.2078,1991.7,1991.6,1.00458]
[1742483530528,1.00454,1991.7,1991.6,2.45577]
[1742483530728,5.75904,1991.7,1991.6,1.4512]
[1742483531029,1.00459,1991.6,1991.5,0.00752483]
[1742483531227,2.55129,1991.6,1991.5,0.00752483]
[1742483531627,2.55129,1991.6,1991.5,1.01216483]
[1742483531822,2.55129,1991.6,1991.5,2.46336483]
[1742483532027,3.2078,1991.7,1991.6,1.00459]
[1742483532729,4.21237,1991.7,1991.6,1.00459]
[1742483532929,5.96,1991.8,1991.7,1.00454]
[1742483533125,5.96,1991.8,1991.7,2.44944]
[1742483533439,3.2078,1991.9,1991.8,1.00449]
[1742483533732,5.96,1992.2,1992.0,1.00439]
[1742483533938,1.00429,1992.2,1992.1,1.4449]
[1742483534333,2.57679,1992.2,1992.1,1.4449]
[1742483534732,1.00439,1992.0,1991.9,3.784]
[1742483534939,1.00439,1992.0,1991.9,5.2289]
[1742483535238,1.00439,1992.0,1991.6,1.00459]
[1742483535239,1.00453,1991.8,1991.6,1.00459]
[1742483535440,4.21229,1991.8,1991.7,1.4532]
[1742483535742,1.00459,1991.6,1991.5,0.00752483]
[1742483535934,4.21239,1991.6,1991.5,0.00752483]
[1742483536139,4.21239,1991.6,1991.5,1.46072483]
[1742483536539,3.2078,1991.6,1991.5,2.46536483]
[1742483536737,3.2078,1991.6,1991.5,1.46072483]
[1742483536936,1.00459,1991.6,1991.5,1.46072483]
[1742483537144,4.21239,1991.6,1991.5,0.00752483]
[1742483538134,1.00475,1991.3,1991.2,47.40578]
[1742483538335,1.0049,1991.0,1990.9,1.5773]
[1742483538542,1.0049,1991.0,1990.9,2.54484]
[1742483538842,3.2078,1991.1,1990.6,96.71144]
[1742483538843,5.71995,1991.1,1990.6,90.4148]
[1742483539139,3.2078,1991.1,1991.0,1.0049]
[1742483539446,0.00752483,1991.0,1990.9,4.78895]
[1742483539745,3.2078,1991.3,1991.2,1.0048]
[1742483540039,4.21234,1991.7,1991.5,1.0046]
[1742483540239,4.21234,1991.7,1991.6,1.5399]
[1742483540435,4.21234,1991.7,1991.6,2.54449]
[1742483540639,3.2078,1991.7,1991.6,1.5399]
[1742483540840,3.2078,1991.7,1991.6,2.54449]
[1742483541045,0.00752483,1991.8,1991.7,1.00454]
[1742483541249,0.00752483,1991.8,1991.7,2.43554]
[1742483541736,1.01201483,1991.8,1991.7,2.43554]
[1742483542040,3.21532483,1991.8,1991.7,2.43554]
[1742483542438,3.21532483,1991.8,1991.6,1.00458]
[1742483542643,1.00459,1991.6,1991.5,6.21961]
[1742483542838,1.0047,1991.4,1991.3,46.412]
[1742483543038,3.2078,1991.6,1991.3,50.196]
[1742483543039,1.00468,1991.5,1991.3,50.196]
[1742483543344,1.0047,1991.4,1991.3,50.196]
[1742483543643,4.2125,1991.4,1991.3,50.196]
[1742483544145,3.2078,1991.4,1991.3,47.41675]
[1742483544540,4.2125,1991.4,1991.3,46.412]
[1742483546251,1.00495,1990.9,1990.8,47.41697]
[1742483546544,1.00495,1990.9,1990.8,47.8806]
[1742483546748,1.00495,1990.9,1990.8,46.412]
[1742483547045,1.005,1990.8,1990.7,0.00752483]
[1742483547246,4.2128,1990.8,1990.7,0.00752483]
[1742483547746,3.2078,1990.8,1990.7,1.01257483]
[1742483548339,1.00497,1990.9,1990.8,1.00497]
[1742483548543,1.00497,1990.9,1990.8,2.56667]
[1742483548742,15.48883,1991.0,1990.8,1.5617]
[1742483548936,15.48883,1991.0,1990.9,1.5617]
[1742483549541,3.2078,1991.0,1990.9,2.56665]
[1742483549743,1.00495,1990.9,1990.8,1.00496]
[1742483550442,4.21274,1991.0,1990.9,1.00495]
[1742483550643,3.2078,1991.0,1990.9,1.00495]
[1742483550845,4.2127,1991.0,1990.9,1.00495]
[1742483551046,4.21273,1991.0,1990.9,1.00495]
[1742483551547,1.00481,1991.2,1990.9,1.00495]
[1742483551747,1.00471,1991.4,1991.3,1.00472]
[1742483553151,1.00471,1991.4,1991.3,1.0047]
[1742483553347,1.00475,1991.3,1991.2,1.4427]
[1742483553742,1.00475,1991.3,1991.0,48.97228]
[1742483553743,1.00485,1991.1,1991.0,48.97228]
[1742483554147,1.00485,1991.1,1991.0,49.4681]
[1742483554645,1.00485,1991.1,1991.0,50.473]
[1742483555045,4.21265,1991.1,1991.0,47.9227]
[1742483555546,4.21265,1991.1,1991.0,46.422]
[1742483555749,4.21265,1991.1,1990.7,0.00752483]
[1742483555750,1.005,1990.8,1990.7,0.00752483]
[1742483555950,4.2128,1990.8,1990.7,0.00752483]
[1742483556853,4.2128,1990.8,1990.7,1.54182483]
[1742483558348,1.5341,1991.0,1990.9,1.00495]
[1742483558748,1.00484,1991.2,1991.1,1.00485]
[1742483558953,1.00491,1991.0,1990.7,1.54182483]
[1742483559554,1.00497,1990.9,1990.8,1.00496]
[1742483559753,2.46777,1990.9,1990.8,1.00496]
[1742483560154,2.46777,1990.9,1990.7,2.54685483]
[1742483560155,1.005,1990.8,1990.7,2.54685483]
[1742483560449,2.4678,1990.8,1990.7,2.54685483]
[1742483560651,3.2078,1991.1,1991.0,1.0049]
[1742483560854,5.67545,1991.1,1991.0,1.0049]
[1742483561156,3.2078,1991.4,1991.3,1.0047]
[1742483561351,2.9288,1991.5,1991.1,3.784]
[1742483561552,1.00473,1991.4,1991.3,1.00472]
[1742483561753,1.4628,1991.4,1991.3,1.00472]
[1742483562055,2.4675,1991.4,1991.3,1.00472]
[1742483562252,3.2078,1991.6,1991.5,1.00464]
[1742483562455,4.6706,1991.6,1991.5,1.00464]
[1742483562655,5.67524,1991.6,1991.5,1.00464]
[1742483563252,3.21532483,1991.8,1991.7,1.00454]
[1742483563451,4.68072483,1991.8,1991.7,1.00454]
[1742483564457,4.7353,1992.3,1992.0,1.00439]
[1742483564655,3.2078,1992.3,1992.2,1.00429]
[1742483564852,3.2078,1992.3,1991.8,1.5482]
[1742483564853,1.00429,1992.2,1992.1,1.5482]
[1742483565051,1.4654,1992.2,1992.1,2.55253]
[1742483565453,9.1678,1992.5,1992.2,1.00429]
[1742483565656,11.66814,1992.5,1992.4,1.00419]
[1742483565853,2.47038,1992.7,1992.3,3.9857]
[1742483566060,1.00408,1992.7,1992.6,1.00409]
[1742483566256,1.00391,1993.0,1992.5,2.51033]
[1742483566461,3.2078,1992.9,1992.6,5.2581]
[1742483566759,5.71550483,1992.9,1992.7,2.47912]
[1742483566959,4.71152483,1992.9,1992.8,1.00399]
[1742483567156,0.00752483,1992.9,1992.8,1.00399]
[1742483567965,1.50372483,1992.9,1992.8,1.00399]
[1742483568356,0.00752483,1992.9,1992.8,1.00399]
[1742483568551,0.00752483,1992.9,1992.8,4.21179]
[1742483569867,0.00752483,1992.9,1992.8,1.00399]
[1742483570259,3.2078,1993.5,1992.9,2.50975]
[1742483570459,3.2078,1993.8,1993.6,1.00358]
[1742483570660,3.2078,1993.8,1993.5,1.00361]
[1742483570861,3.2078,1993.8,1993.6,1.5514]
[1742483571164,1.4779,1993.7,1993.6,1.5514]
[1742483571457,1.4779,1993.7,1993.5,40.8]
[1742483571657,3.2078,1993.6,1993.5,0.00752483]
[1742483571857,4.21141,1993.6,1993.2,1.00376]
[1742483572064,1.5419,1993.5,1992.9,6.9888]
[1742483572266,1.5419,1993.5,1993.2,1.00377]
[1742483572457,2.54555,1993.5,1993.3,1.4523]
[1742483572652,4.7497,1993.5,1993.3,1.4523]
[1742483573159,1.00374,1993.3,1993.2,0.00752483]
[1742483573362,3.2078,1993.3,1993.2,0.00752483]
[1742483573563,10.17154,1993.3,1993.2,0.00752483]
[1742483573764,11.71344,1993.3,1993.2,0.00752483]
[1742483577170,14.21344,1993.3,1992.7,47.41902]
[1742483577369,3.2078,1992.9,1992.2,46.388]
[1742483577568,3.2078,1992.9,1992.4,1.00417]
[1742483577569,3.2078,1992.7,1992.4,1.00417]
[1742483577770,3.2078,1992.7,1992.3,1.4631]
[1742483577771,1.4909,1992.6,1992.5,1.00414]
[1742483577975,5.96,1992.8,1992.7,1.00404]
[1742483578170,4.2117,1993.0,1992.7,1.00401]
[1742483578469,1.49842483,1992.9,1992.8,1.00399]
[1742483579070,1.00399,1992.8,1992.7,1.5453]
[1742483579272,1.00399,1992.8,1992.6,0.00752483]
[1742483579576,2.49494,1992.7,1992.6,0.00752483]
[1742483580076,4.5549,1992.7,1992.2,51.7123]
[1742483580272,3.2078,1992.6,1992.2,51.7123]
[1742483580468,3.2078,1992.6,1992.5,1.00414]
[1742483581068,3.2078,1992.6,1992.5,4.78314]
[1742483581367,5.96,1992.7,1992.6,1.00409]
[1742483581565,1.4909,1992.8,1992.6,1.4997]
[1742483581774,4.6987,1992.8,1992.6,1.4997]
[1742483582073,1.00404,1992.7,1992.6,1.4997]
[1742483582272,1.4512,1992.7,1992.6,2.50379]
[1742483582469,2.45524,1992.7,1992.6,1.4997]
[1742483582670,1.00414,1992.5,1992.4,0.00752483]
[1742483583472,6.96413,1992.6,1992.4,0.00752483]
[1742483583774,5.96,1992.6,1992.4,3.78652483]
[1742483583973,6.96409,1992.6,1992.5,1.4225]
[1742483584375,8.48539,1992.6,1992.5,1.4225]
[1742483584679,1.5213,1992.6,1992.5,2.42664]
[1742483584871,1.00407,1992.7,1992.5,2.42664]
[1742483585178,1.5213,1992.8,1992.7,1.00404]
[1742483585571,0.00752483,1992.9,1992.5,6.0837]
[1742483585772,0.00752483,1992.9,1992.8,1.00399]
[1742483586277,0.00752483,1992.9,1992.7,3.779]
[1742483586477,0.00752483,1992.9,1992.8,2.42649]
[1742483586875,0.00752483,1992.9,1992.8,1.4225]
[1742483587079,4.74242483,1992.9,1992.5,5.2314]
[1742483587271,4.74242483,1992.9,1992.4,1.49682483]
[1742483587272,1.00404,1992.7,1992.6,1.4772]
[1742483587473,1.00411,1992.6,1992.4,3.78552483]
[1742483587775,1.00414,1992.5,1992.4,0.00752483]
[1742483587968,1.5271,1992.6,1992.4,0.00752483]
[1742483588173,2.53122,1992.6,1992.4,0.00752483]
[1742483588383,1.5271,1992.6,1992.4,2.48889483]
[1742483588675,2.5312,1992.6,1992.4,2.48889483]
[1742483588877,2.53119,1992.6,1992.4,1.48472483]
[1742483589071,2.53119,1992.6,1992.4,2.48888483]
[1742483589273,1.5271,1992.6,1992.5,1.00414]
[1742483589583,2.53858483,1992.9,1992.7,1.00401]
[1742483589883,2.53858483,1992.9,1992.5,5.2552]
[1742483590073,1.53462483,1992.9,1992.6,1.00406]
[1742483590287,1.53462483,1992.9,1992.5,5.2552]
[1742483590288,3.2078,1992.8,1992.5,5.2552]
[1742483590483,1.4718,1992.7,1992.6,1.00404]
[1742483590867,2.47584,1992.7,1992.5,5.2552]
[1742483591073,2.47587,1992.7,1992.5,5.2552]
[1742483591374,1.4718,1992.7,1992.5,1.4772]
[1742483591575,1.00414,1992.5,1992.4,0.00752483]
[1742483591980,2.47594,1992.5,1992.4,0.00752483]
[1742483593276,1.4718,1992.5,1992.4,1.01171483]
[1742483593587,4.21189,1992.6,1992.4,1.47132483]
[1742483593776,2.57244,1992.5,1992.4,1.47132483]
[1742483593976,2.57244,1992.5,1992.4,0.00752483]
[1742483594381,1.5683,1992.5,1992.4,1.01171483]
[1742483594580,3.2078,1992.6,1992.4,1.01171483]
[1742483594581,3.2078,1992.6,1992.5,1.00414]
[1742483594887,3.2078,1992.6,1992.5,2.46794]
[1742483595085,1.5683,1992.6,1992.5,2.46794]
[1742483595983,5.96,1992.7,1992.6,1.00409]
[1742483596181,4.72702483,1992.9,1992.8,1.00399]
[1742483596779,1.51922483,1992.9,1992.8,1.00399]